bitfinex-derivatives/quotes_BNBF0:USTF0_20251027
["timestamp","ask_amount","ask_price","bid_price","bid_amount"]
[1761578776903,0.51179452,1139.9,1139.4,1.837]
[1761578777103,0.51179452,1139.8,1139.4,1.837]
[1761578777304,0.51179452,1139.7,1139.4,1.837]
[1761578777502,0.51179452,1139.6,1139.4,1.837]
[1761578777702,0.64349368,1140.1,1139.4,1.837]
[1761578778001,0.51185014,1140.0,1139.4,1.837]
[1761578778201,0.51185014,1139.9,1139.4,1.837]
[1761578778404,0.51185014,1139.8,1139.4,1.837]
[1761578778606,0.51185014,1139.7,1139.4,1.837]
[1761578778805,0.64349368,1140.1,1139.4,1.837]
[1761578779106,0.51188971,1140.0,1139.4,1.837]
[1761578779306,0.51188971,1139.9,1139.4,1.837]
[1761578779503,0.51188971,1139.8,1139.4,1.837]
[1761578779702,0.51188971,1139.7,1139.4,1.837]
[1761578780007,0.64349368,1140.0,1139.4,1.837]
[1761578780202,0.51187383,1139.9,1139.4,1.837]
[1761578780407,0.51187383,1139.8,1139.4,1.837]
[1761578780607,0.51187383,1139.7,1139.4,1.837]
[1761578780808,0.64349368,1140.1,1139.4,1.837]
[1761578781004,0.51188027,1140.0,1139.4,1.837]
[1761578781305,0.51188027,1139.9,1139.4,1.837]
[1761578781508,0.51188027,1139.8,1139.4,1.837]
[1761578781808,0.51188027,1139.7,1139.4,1.837]
[1761578782007,0.64349368,1140.1,1139.4,1.837]
[1761578782204,0.51180821,1140.0,1139.4,1.837]
[1761578782408,0.51180821,1139.9,1139.4,1.837]
[1761578782609,0.51180821,1139.8,1139.4,1.837]
[1761578782806,0.51180821,1139.7,1139.4,1.837]
[1761578783005,0.64349368,1140.1,1139.4,1.837]
[1761578783209,0.51181419,1140.0,1139.4,1.837]
[1761578783408,0.51181419,1139.9,1139.4,1.837]
[1761578783708,0.51181419,1139.8,1139.4,1.837]
[1761578783908,0.51181419,1139.7,1139.4,1.837]
[1761578784108,0.64349368,1140.2,1139.4,1.837]
[1761578784309,0.51183581,1140.1,1139.4,1.837]
[1761578784508,0.51183581,1140.0,1139.4,1.837]
[1761578784709,0.51183581,1139.9,1139.4,1.837]
[1761578784909,0.51183581,1139.8,1139.4,1.837]
[1761578785112,0.64349368,1140.3,1139.4,1.837]
[1761578785314,0.51190442,1140.2,1139.4,1.837]
[1761578785613,0.51190442,1140.1,1139.4,1.837]
[1761578785813,0.51190442,1140.0,1139.4,1.837]
[1761578786111,0.51190442,1139.9,1139.4,1.837]
[1761578786314,0.51190442,1139.8,1139.4,1.837]
[1761578786514,0.64349368,1140.3,1139.4,1.837]
[1761578786710,0.51200264,1140.2,1139.4,1.837]
[1761578786914,0.51200264,1140.1,1139.4,1.837]
[1761578787213,0.51200264,1140.0,1139.4,1.837]
[1761578787411,0.51200264,1139.9,1139.4,1.837]
[1761578787611,0.51200264,1139.8,1139.4,1.837]
[1761578787809,0.51200264,1139.7,1139.4,1.837]
[1761578788013,0.64349368,1140.2,1139.4,1.837]
[1761578788311,0.51213016,1140.1,1139.4,1.837]
[1761578788511,0.51213016,1140.0,1139.4,1.837]
[1761578788811,0.51213016,1139.9,1139.4,1.837]
[1761578789014,0.51213016,1139.8,1139.4,1.837]
[1761578789211,0.51213016,1139.7,1139.4,1.837]
[1761578789411,0.64349368,1140.2,1139.4,1.837]
[1761578789610,0.51592031,1140.1,1139.4,1.837]
[1761578789910,0.51592031,1140.0,1139.4,1.059]
[1761578790110,0.51592031,1139.9,1139.4,1.059]
[1761578790315,0.51592031,1139.8,1139.4,1.059]
[1761578790516,0.51592031,1139.7,1139.4,1.059]
[1761578790715,0.64349368,1140.2,1139.4,1.059]
[1761578790912,0.51581754,1140.1,1139.4,1.059]
[1761578791213,0.51581754,1140.0,1139.4,1.059]
[1761578791513,0.51581754,1139.9,1139.4,1.059]
[1761578791717,0.51581754,1139.8,1139.4,1.059]
[1761578791917,0.51581754,1139.7,1139.4,1.059]
[1761578792218,0.64349368,1140.2,1139.4,1.059]
[1761578792419,0.51585035,1140.1,1139.4,1.059]
[1761578792614,0.51585035,1140.0,1139.4,1.059]
[1761578792817,0.51585035,1139.9,1139.3,0.849]
[1761578793017,0.51585035,1139.8,1139.3,0.849]
[1761578793313,0.51585035,1139.7,1139.3,0.849]
[1761578793513,0.64349368,1140.2,1139.3,0.849]
[1761578793813,1.15937105,1140.1,1139.3,0.849]
[1761578794113,0.51587737,1140.0,1139.3,0.849]
[1761578794317,0.51587737,1139.9,1139.3,0.849]
[1761578794514,0.51587737,1139.8,1139.3,0.849]
[1761578794713,0.51587737,1139.7,1139.3,0.849]
[1761578794917,0.64349368,1140.1,1139.3,0.849]
[1761578795114,0.51586957,1140.0,1139.3,0.849]
[1761578795316,0.51586957,1139.9,1139.3,0.849]
[1761578795618,0.51586957,1139.8,1139.3,0.849]
[1761578795915,0.51586957,1139.7,1139.3,0.849]
[1761578796119,0.64349368,1140.1,1139.3,0.849]
[1761578796319,0.51586625,1140.0,1139.3,0.849]
[1761578796515,0.51586625,1139.9,1139.3,0.849]
[1761578796719,0.51586625,1139.8,1139.3,0.849]
[1761578797016,0.51586625,1139.7,1139.3,0.849]
[1761578797219,0.64349368,1140.2,1139.3,0.849]
[1761578797416,0.51597553,1140.1,1139.3,0.849]
[1761578797621,0.51597553,1140.0,1139.3,0.849]
[1761578797920,0.51597553,1139.9,1139.3,0.849]
[1761578798220,0.51597553,1139.8,1139.3,0.849]
[1761578798520,0.51597553,1139.7,1139.3,0.849]
[1761578798720,0.86467105,1140.4,1139.3,0.849]
[1761578798721,0.64349368,1140.2,1139.3,0.849]
[1761578799020,0.51615927,1140.1,1139.3,0.849]
[1761578799223,0.51615927,1140.0,1139.3,0.849]
[1761578799419,0.51615927,1139.9,1139.3,0.849]
[1761578799617,0.64349368,1140.4,1139.3,0.849]
[1761578799820,1.15974331,1140.3,1139.3,0.849]
[1761578800017,0.51624963,1140.2,1139.3,0.849]
[1761578800320,0.51624963,1140.1,1139.3,0.849]
[1761578800519,0.51624963,1140.0,1139.3,0.849]
[1761578800721,0.51624963,1139.9,1139.3,0.849]
[1761578801018,0.64349368,1140.3,1139.3,0.849]
[1761578801221,0.51622224,1140.2,1139.3,0.849]
[1761578801418,0.51622224,1140.1,1139.3,0.849]
[1761578801618,0.51622224,1140.0,1139.3,0.849]
[1761578801920,0.51622224,1139.9,1139.3,0.849]
[1761578802118,0.64349368,1140.3,1139.3,0.849]
[1761578802318,0.51612032,1140.2,1139.3,0.849]
[1761578802519,0.51612032,1140.1,1139.3,0.849]
[1761578802722,1.2970065,1140.7,1139.3,0.849]
[1761578802723,0.51612032,1140.0,1139.3,0.849]
[1761578802917,0.51612032,1139.9,1139.3,0.849]
[1761578803222,0.51612032,1139.8,1139.3,0.849]
[1761578803523,0.64349368,1140.1,1139.3,0.849]
[1761578803823,0.5160442,1140.0,1139.3,0.849]
[1761578804024,0.5160442,1139.9,1139.3,0.849]
[1761578804221,0.5160442,1139.8,1139.3,0.849]
[1761578804524,0.64349368,1140.1,1139.3,0.849]
[1761578804723,0.51602754,1140.0,1139.3,0.849]
[1761578804922,0.51602754,1139.9,1139.3,0.849]
[1761578805121,0.51602754,1139.8,1139.3,0.849]
[1761578805322,0.51604846,1139.7,1139.3,0.849]
[1761578805523,0.64349368,1140.1,1139.3,0.849]
[1761578805721,0.51608563,1140.0,1139.3,0.849]
[1761578805924,0.51608563,1139.9,1139.3,0.849]
[1761578806121,0.51608563,1139.8,1139.3,0.849]
[1761578806327,0.51624903,1139.7,1139.3,0.849]
[1761578806625,0.64349368,1140.1,1139.3,0.849]
[1761578806827,0.51617547,1140.0,1139.3,0.849]
[1761578807023,0.51617547,1139.9,1139.3,0.849]
[1761578807226,0.51617547,1139.8,1139.3,0.849]
[1761578807427,0.51617547,1139.7,1139.3,0.849]
[1761578807623,0.64349368,1140.2,1139.3,0.849]
[1761578807927,1.15969583,1140.1,1139.3,0.849]
[1761578808126,0.51620215,1140.0,1139.3,0.849]
[1761578808327,0.51620215,1139.9,1139.3,0.849]
[1761578808528,0.51620215,1139.8,1139.3,0.849]
[1761578808728,0.51620215,1139.7,1139.3,0.849]
[1761578809028,0.64349368,1140.1,1139.3,0.849]
[1761578809228,0.51620388,1140.0,1139.3,0.849]
[1761578809428,0.51620388,1139.9,1139.3,0.849]
[1761578809628,0.51620388,1139.8,1139.3,0.849]
[1761578809828,0.51620388,1139.7,1139.3,0.849]
[1761578810029,0.64349368,1140.2,1139.3,0.849]
[1761578810325,0.5162348,1140.1,1139.3,0.849]
[1761578810529,0.5162348,1140.0,1139.3,0.849]
[1761578810825,0.5162348,1139.9,1139.3,0.849]
[1761578811024,0.5162348,1139.8,1139.3,0.849]
[1761578811224,0.5162348,1139.7,1139.3,0.849]
[1761578811429,0.64349368,1140.2,1139.3,0.849]
[1761578811725,0.51626688,1140.1,1139.3,0.849]
[1761578812029,0.51626688,1140.0,1139.3,0.849]
[1761578812329,0.51626688,1139.9,1139.3,0.849]
[1761578812627,0.51626688,1139.8,1139.3,0.849]
[1761578812829,0.51626688,1139.7,1139.3,0.849]
[1761578813028,0.64349368,1140.2,1139.3,0.849]
[1761578813230,0.51627249,1140.1,1139.3,0.849]
[1761578813430,0.51627249,1140.0,1139.3,0.849]
[1761578813630,1.15976617,1139.9,1139.3,0.849]
[1761578813831,0.51627249,1139.8,1139.3,0.849]
[1761578814026,0.51627249,1139.7,1139.3,0.849]
[1761578814328,0.51627249,1139.6,1139.3,0.849]
[1761578814631,0.51627249,1139.5,1139.3,0.849]
[1761578814829,0.51627249,1139.4,1139.3,0.849]
[1761578817834,0.64349368,1140.1,1139.3,0.849]
[1761578818033,1.15983317,1140.0,1139.3,0.849]
[1761578818337,0.51633949,1139.9,1139.3,0.849]
[1761578818536,0.51633949,1139.8,1139.3,0.849]
[1761578818738,0.51633949,1139.7,1139.3,0.849]
[1761578818938,0.51633949,1139.6,1139.3,0.849]
[1761578819139,0.51633949,1139.5,1139.3,0.849]
[1761578819336,0.51633949,1139.4,1139.3,0.849]
[1761578820536,0.64349368,1140.0,1139.3,0.849]
[1761578820737,0.51646386,1139.9,1139.3,0.849]
[1761578820936,0.51646386,1139.8,1139.3,0.849]
[1761578821140,0.51646386,1139.7,1139.3,0.849]
[1761578821338,0.51646386,1139.6,1139.3,0.849]
[1761578821542,0.64349368,1140.2,1139.3,0.849]
[1761578821742,0.51658123,1140.1,1139.3,0.849]
[1761578822038,0.51658123,1140.0,1139.3,0.849]
[1761578822242,0.51658123,1139.9,1139.3,0.849]
[1761578822442,0.64349368,1140.4,1139.3,0.849]
[1761578822639,0.51664817,1140.3,1139.3,0.849]
[1761578822941,0.51664817,1140.2,1139.3,0.849]
[1761578823141,0.51664817,1140.1,1139.3,0.849]
[1761578823341,0.64349368,1140.5,1139.3,0.849]
[1761578823540,0.51651488,1140.4,1139.3,0.849]
[1761578823740,0.51651488,1140.3,1139.3,0.849]
[1761578823939,0.64349368,1140.6,1139.3,0.849]
[1761578824139,0.51660674,1140.5,1139.3,0.849]
[1761578824336,0.51660674,1140.4,1139.3,0.849]
[1761578824537,0.64349368,1140.7,1139.3,0.849]
[1761578824742,0.51635052,1140.6,1139.3,2.1432651]
[1761578824938,0.51635052,1140.5,1139.3,0.849]
[1761578825140,1.2970065,1141.2,1139.3,0.849]
[1761578825141,0.64349368,1140.9,1139.3,0.849]
[1761578825340,0.51609204,1140.8,1139.3,0.849]
[1761578825540,0.51609204,1140.7,1139.3,0.849]
[1761578825739,0.51609204,1140.6,1139.3,0.849]
[1761578825943,0.64349368,1141.0,1139.3,0.849]
[1761578826141,0.5160834,1140.9,1139.3,2.1432651]
[1761578826343,0.5160834,1140.8,1139.3,0.849]
[1761578826644,0.64349368,1141.2,1139.3,0.849]
[1761578826940,0.51564199,1141.1,1139.3,0.849]
[1761578827144,0.51564199,1141.0,1139.3,0.849]
[1761578827344,0.51564199,1140.9,1139.3,0.849]
[1761578827640,0.51564199,1140.8,1139.3,0.849]
[1761578827938,0.64349368,1141.2,1139.3,0.849]
[1761578828144,0.51534389,1141.1,1139.3,0.849]
[1761578828344,0.51534389,1141.0,1139.3,0.849]
[1761578828544,0.51534389,1140.9,1139.3,0.849]
[1761578828745,0.64349368,1141.3,1139.3,0.849]
[1761578828945,0.51500241,1141.2,1139.3,0.849]
[1761578829245,0.51500241,1141.1,1139.3,0.849]
[1761578829442,0.51500241,1141.0,1139.3,0.849]
[1761578829644,0.51500241,1140.9,1139.3,0.849]
[1761578829842,0.64349368,1141.3,1139.3,0.849]
[1761578830041,0.51467533,1141.2,1139.3,2.1432651]
[1761578830341,0.51467533,1141.1,1139.3,0.849]
[1761578830544,0.51467533,1141.0,1139.3,0.849]
[1761578830740,0.64349368,1141.3,1139.3,0.849]
[1761578830946,0.51436397,1141.2,1139.3,0.849]
[1761578831146,0.51436397,1141.1,1139.3,0.849]
[1761578831345,0.51436397,1141.0,1139.3,0.849]
[1761578831546,0.64349368,1141.3,1139.3,0.849]
[1761578831746,0.51407118,1141.2,1139.3,0.849]
[1761578831945,0.51407118,1141.1,1139.3,0.849]
[1761578832142,0.51407118,1141.0,1139.3,0.849]
[1761578832347,0.64349368,1141.4,1139.3,0.849]
[1761578832644,0.51381271,1141.3,1139.3,0.849]
[1761578832845,0.51381271,1141.2,1139.3,0.849]
[1761578833044,0.51381271,1141.1,1139.3,0.849]
[1761578833248,0.51381271,1141.0,1139.3,0.849]
[1761578833544,0.64349368,1141.7,1139.3,0.849]
[1761578833743,0.513639,1141.6,1139.3,0.849]
[1761578833947,0.513639,1141.5,1139.3,0.849]
[1761578834148,0.513639,1141.4,1139.3,0.849]
[1761578834344,0.513639,1141.3,1139.3,0.849]
[1761578834544,0.513639,1141.2,1139.3,0.849]
[1761578834747,0.513639,1141.1,1139.3,0.849]
[1761578835048,0.513639,1141.0,1139.3,0.849]
[1761578835246,0.84233745,1141.7,1139.3,0.849]
[1761578835546,0.51290887,1141.6,1139.3,0.849]
[1761578835746,0.51290887,1141.5,1139.3,0.849]
[1761578835946,0.51290887,1141.4,1139.3,0.849]
[1761578836249,0.51290887,1141.3,1139.3,0.849]
[1761578836451,0.51290887,1141.2,1139.3,0.849]
[1761578836750,0.51290887,1141.1,1139.3,0.849]
[1761578836952,0.51290887,1141.0,1139.3,0.849]
[1761578837246,0.51290887,1140.9,1139.3,0.849]
[1761578837450,0.64349368,1141.3,1139.3,0.849]
[1761578837650,0.51284278,1141.2,1139.3,0.849]
[1761578837846,0.51284278,1141.1,1139.3,0.849]
[1761578838147,0.51284278,1141.0,1139.3,0.849]
[1761578838351,0.51284278,1140.9,1139.3,0.849]
[1761578838648,0.64349368,1141.3,1139.3,0.849]
[1761578838848,0.51277004,1141.2,1139.3,0.849]
[1761578839048,0.51277004,1141.1,1139.3,0.849]
[1761578839347,0.51277004,1141.0,1139.3,0.849]
[1761578839550,0.51277004,1140.9,1139.3,0.849]
[1761578839750,0.51277004,1140.8,1139.3,0.849]
[1761578840050,0.51277004,1140.7,1139.3,0.849]
[1761578840348,0.51277004,1140.6,1139.3,0.849]
[1761578840546,0.51277004,1140.5,1139.3,0.849]
[1761578840749,0.51277004,1140.4,1139.3,0.849]
[1761578840951,0.51277004,1140.3,1139.3,0.849]
[1761578841147,0.51277004,1140.2,1139.3,0.849]
[1761578841348,0.64349368,1140.5,1139.3,0.849]
[1761578841551,0.51244635,1140.4,1139.3,0.849]
[1761578841750,0.51244635,1140.3,1139.3,0.849]
[1761578842053,0.51244635,1140.2,1139.3,0.849]
[1761578842349,0.64349368,1140.6,1139.3,0.849]
[1761578842656,0.51251268,1140.5,1139.3,0.849]
[1761578842849,0.51251268,1140.4,1139.3,0.849]
[1761578843053,0.51251268,1140.3,1139.3,0.849]
[1761578843251,0.51251268,1140.2,1139.3,0.849]
[1761578843451,0.64349368,1140.8,1139.3,0.849]
[1761578843654,0.51254575,1140.7,1139.3,0.849]
[1761578843852,0.51254575,1140.6,1139.3,0.849]
[1761578844052,0.51254575,1140.5,1139.3,0.849]
[1761578844349,0.51254575,1140.4,1139.3,0.849]
[1761578844553,0.51254575,1140.3,1139.3,0.849]
[1761578844750,0.51254575,1140.2,1139.3,0.849]
[1761578844954,0.64349368,1140.8,1139.3,0.849]
[1761578845155,0.51270072,1140.7,1139.3,0.849]
[1761578845353,0.51270072,1140.6,1139.3,0.849]
[1761578845550,0.51270072,1140.5,1139.3,0.849]
[1761578845752,0.51270072,1140.4,1139.3,0.849]
[1761578845957,0.51270072,1140.3,1139.3,0.849]
[1761578846152,0.51270072,1140.2,1139.3,0.849]
[1761578846451,0.64349368,1140.8,1139.3,0.849]
[1761578846650,0.51287427,1140.7,1139.3,0.849]
[1761578846854,0.51287427,1140.6,1139.3,0.849]
[1761578847049,0.51287427,1140.5,1139.3,0.849]
[1761578847252,0.51287427,1140.4,1139.3,0.849]
[1761578847451,0.51287427,1140.3,1139.3,0.849]
[1761578847651,0.51287427,1140.2,1139.3,0.849]
[1761578847852,0.64349368,1140.8,1139.3,0.849]
[1761578848155,0.51296994,1140.7,1139.3,0.849]
[1761578848353,0.51296994,1140.6,1139.3,0.849]
[1761578848557,0.51296994,1140.5,1139.3,0.849]
[1761578848857,0.51296994,1140.4,1139.3,0.849]
[1761578849052,0.51296994,1140.3,1139.3,0.849]
[1761578849257,0.51296994,1140.2,1139.3,0.849]
[1761578849457,0.64349368,1140.8,1138.0,0.15274513]
[1761578849658,0.51127236,1140.7,1138.0,0.15274513]
[1761578849857,0.51127236,1140.6,1138.0,0.15274513]
[1761578850154,0.51127236,1140.5,1138.0,0.15274513]
[1761578850358,0.51127236,1140.4,1138.0,0.15274513]
[1761578850559,0.51127236,1140.3,1138.0,1.44701023]
[1761578850755,0.51127236,1140.2,1138.0,1.44701023]
[1761578850957,0.51122991,1140.1,1138.0,0.15274513]
[1761578851157,0.51122991,1140.0,1138.0,0.15274513]
[1761578851361,0.64349368,1140.6,1138.0,0.15274513]
[1761578851556,0.64349368,1140.4,1138.0,0.15274513]
[1761578851756,0.51124292,1140.3,1138.0,0.15274513]
[1761578852060,0.51124292,1140.2,1138.0,0.15274513]
[1761578852356,0.51124292,1140.1,1138.0,0.15274513]
[1761578852562,0.51124292,1140.0,1138.0,0.15274513]
[1761578852762,0.51124292,1139.9,1138.0,0.15274513]
[1761578852958,0.51124292,1139.8,1138.0,0.15274513]
[1761578853164,0.64349368,1140.1,1138.0,0.15274513]
[1761578853462,0.51107958,1140.0,1138.0,0.15274513]
[1761578853656,0.51107958,1139.9,1138.0,0.15274513]
[1761578853861,0.51107958,1139.8,1138.0,0.15274513]
[1761578854061,0.64349368,1140.3,1138.0,0.15274513]
[1761578854264,0.5111065,1140.2,1138.0,0.15274513]
[1761578854462,0.64349368,1140.6,1138.1,1.2942651]
[1761578854658,0.51129207,1140.5,1138.1,1.2942651]
[1761578854863,0.51129207,1140.4,1138.1,1.2942651]
[1761578855059,0.51129207,1140.3,1138.1,1.2942651]
[1761578855360,0.51129207,1140.2,1138.1,1.2942651]
[1761578855564,0.51129207,1140.1,1138.0,1.44701023]
[1761578855763,0.51129207,1140.0,1138.0,1.44701023]
[1761578856060,0.64349368,1140.4,1138.0,1.44701023]
[1761578856264,0.51121167,1140.3,1138.0,1.44701023]
[1761578856463,0.51121167,1140.2,1138.0,0.15274513]
[1761578856759,0.64349368,1140.4,1138.0,0.15274513]
[1761578856760,0.51121167,1140.1,1138.0,0.15274513]
[1761578856960,0.51121167,1140.0,1138.0,0.15274513]
[1761578857159,0.64349368,1140.4,1138.0,0.15274513]
[1761578857361,0.51137847,1140.3,1138.0,0.15274513]
[1761578857561,0.51137847,1140.2,1138.0,0.15274513]
[1761578857765,0.51137847,1140.1,1138.0,0.15274513]
[1761578858063,0.51137847,1140.0,1138.0,1.44701023]
[1761578858262,0.64349368,1140.4,1138.0,1.44701023]
[1761578858460,0.51139681,1140.3,1138.0,1.44701023]
[1761578858664,0.51139681,1140.2,1138.0,1.44701023]
[1761578858961,0.51139681,1140.1,1138.0,1.44701023]
[1761578859165,0.51139681,1140.0,1138.0,1.44701023]
[1761578859365,0.64349368,1140.4,1138.0,1.44701023]
[1761578859562,0.51140602,1140.3,1138.0,0.15274513]
[1761578859865,0.51140602,1140.2,1138.0,0.15274513]
[1761578860165,0.51140602,1140.1,1138.0,0.15274513]
[1761578860365,0.51140602,1140.0,1138.0,0.15274513]
[1761578860567,0.64349368,1140.5,1138.0,0.15274513]
[1761578860763,1.15470496,1140.4,1138.0,0.15274513]
[1761578861065,0.51121128,1140.3,1138.0,0.15274513]
[1761578861267,0.51121128,1140.2,1138.0,0.15274513]
[1761578861468,0.51121128,1140.1,1138.0,0.15274513]
[1761578861664,0.51121128,1140.0,1138.0,0.15274513]
[1761578861866,0.64349368,1140.4,1138.0,0.15274513]
[1761578862165,0.51117237,1140.3,1138.0,0.15274513]
[1761578862366,0.51117237,1140.2,1138.0,0.15274513]
[1761578862669,0.51117237,1140.1,1138.0,0.15274513]
[1761578862870,0.51117237,1140.0,1138.0,0.15274513]
[1761578863165,0.64349368,1140.5,1138.0,0.15274513]
[1761578863470,0.51108723,1140.4,1138.0,0.15274513]
[1761578863669,0.64349368,1140.5,1138.0,0.15274513]
[1761578863670,0.51108723,1140.3,1138.0,0.15274513]
[1761578863866,0.51108723,1140.2,1138.0,0.15274513]
[1761578864067,0.51108723,1140.1,1138.0,0.15274513]
[1761578864271,0.51108723,1140.0,1138.0,0.15274513]
[1761578864467,0.64349368,1140.5,1138.0,0.15274513]
[1761578864669,0.51102142,1140.4,1138.0,0.15274513]
[1761578864867,0.51102142,1140.3,1138.0,0.15274513]
[1761578865072,0.51102142,1140.2,1138.0,0.15274513]
[1761578865272,0.51102142,1140.1,1138.0,0.15274513]
[1761578865473,0.51102142,1140.0,1138.0,0.15274513]
[1761578865674,0.64349368,1140.5,1138.0,0.15274513]
[1761578865870,0.51099115,1140.4,1138.0,0.15274513]
[1761578866073,0.51099115,1140.3,1138.0,0.15274513]
[1761578866271,0.51099115,1140.2,1138.0,0.15274513]
[1761578866474,0.51099115,1140.1,1138.0,0.15274513]
[1761578866675,0.64349368,1140.6,1138.0,0.15274513]
[1761578866873,0.51105368,1140.5,1138.0,0.15274513]
[1761578867075,0.51105368,1140.4,1138.0,0.15274513]
[1761578867272,0.51105368,1140.3,1138.0,0.15274513]
[1761578867576,0.51105368,1140.2,1138.0,0.15274513]
[1761578867776,0.51105368,1140.1,1138.0,0.15274513]
[1761578868074,0.51105368,1140.0,1138.0,0.15274513]
[1761578868272,0.51105368,1139.9,1138.0,0.15274513]
[1761578868476,0.64349368,1140.7,1138.0,0.15274513]
[1761578868672,0.51090015,1140.6,1138.0,0.15274513]
[1761578868878,0.51090015,1140.5,1138.0,0.15274513]
[1761578869074,0.51090015,1140.4,1138.0,0.15274513]
[1761578869278,0.51090015,1140.3,1138.0,0.15274513]
[1761578869479,0.51090015,1140.2,1138.0,0.15274513]
[1761578869675,0.51090015,1140.1,1138.0,0.15274513]
[1761578869977,0.51090015,1140.0,1138.0,0.15274513]
[1761578870174,0.64349368,1140.4,1138.0,0.15274513]
[1761578870375,0.51081112,1140.3,1138.0,0.15274513]
[1761578870580,0.51081112,1140.2,1138.0,0.15274513]
[1761578870775,0.51081112,1140.1,1138.0,0.15274513]
[1761578870975,0.51081112,1140.0,1138.0,0.15274513]
[1761578871179,0.64349368,1140.4,1138.0,0.15274513]
[1761578871379,0.51077424,1140.3,1138.0,0.15274513]
[1761578871575,0.51077424,1140.2,1138.0,0.15274513]
[1761578871879,0.51077424,1140.1,1138.0,0.15274513]
[1761578872079,0.51077424,1140.0,1138.0,0.15274513]
[1761578872276,0.64349368,1140.7,1138.0,0.15274513]
[1761578872580,0.51093522,1140.6,1138.1,1.2942651]
[1761578872777,0.51093522,1140.5,1138.1,1.2942651]
[1761578872974,0.51093522,1140.4,1138.1,1.2942651]
[1761578873176,0.51093522,1140.3,1138.1,1.2942651]
[1761578873377,0.64349368,1140.7,1138.2,1.2942651]
[1761578873581,0.51098232,1140.6,1138.2,1.2942651]
[1761578873780,0.51098232,1140.5,1138.2,1.2942651]
[1761578873981,0.51098232,1140.4,1138.1,1.2942651]
[1761578874281,0.51098232,1140.3,1138.1,1.2942651]
[1761578874481,0.64349368,1140.7,1138.2,1.2942651]
[1761578874681,0.51108846,1140.6,1138.2,1.2942651]
[1761578874882,0.51108846,1140.5,1138.3,1.2942651]
[1761578875080,0.51108846,1140.4,1138.4,1.2942651]
[1761578875280,0.64349368,1140.8,1138.4,1.2942651]
[1761578875581,0.51123988,1140.7,1138.4,1.2942651]
[1761578875780,0.51123988,1140.6,1138.4,1.2942651]
[1761578875977,0.51123988,1140.5,1138.4,1.2942651]
[1761578876180,0.51123988,1140.4,1138.4,1.2942651]
[1761578876378,0.64349368,1140.8,1138.4,1.2942651]
[1761578876578,0.51132218,1140.7,1138.4,1.2942651]
[1761578876882,0.51132218,1140.6,1138.4,1.2942651]
[1761578877083,0.51132218,1140.5,1138.4,1.2942651]
[1761578877283,0.64349368,1140.9,1138.4,1.2942651]
[1761578877483,0.51148109,1140.8,1138.6,1.2942651]
[1761578877781,0.51148109,1140.7,1138.6,1.2942651]
[1761578877982,0.51148109,1140.6,1138.6,1.2942651]
[1761578878182,0.64349368,1141.0,1138.6,1.2942651]
[1761578878380,0.51160006,1140.9,1138.6,1.2942651]
[1761578878582,0.51160006,1140.8,1138.6,1.2942651]
[1761578878783,0.51160006,1140.7,1138.6,1.2942651]
[1761578878982,0.51160006,1140.6,1138.6,1.2942651]
[1761578879180,0.64349368,1141.0,1138.6,1.2942651]
[1761578879483,0.51144878,1140.9,1138.7,1.2942651]
[1761578879680,0.51144878,1140.8,1138.8,1.2942651]
[1761578879979,0.51144878,1140.7,1138.8,1.2942651]
[1761578880281,0.64349368,1141.0,1138.8,1.2942651]
[1761578880481,0.5114865,1140.9,1138.8,1.2942651]
[1761578880780,0.64349368,1141.3,1139.1,1.2942651]
[1761578881080,0.51160885,1141.2,1139.1,1.2942651]
[1761578881284,0.51160885,1141.1,1139.2,1.2942651]
[1761578881585,0.64349368,1141.4,1139.2,1.2942651]
[1761578881783,0.51202372,1141.3,1139.2,1.2942651]
[1761578881983,0.51202372,1141.2,1139.1,1.2942651]
[1761578882184,0.51202372,1141.1,1139.1,1.2942651]
[1761578882380,0.51202372,1141.0,1139.0,1.2942651]
[1761578882680,0.64349368,1141.4,1139.0,1.2942651]
[1761578882980,0.5118753,1141.3,1139.0,1.2942651]
[1761578883181,0.5118753,1141.2,1139.0,1.2942651]
[1761578883382,0.5118753,1141.1,1138.9,1.2942651]
[1761578883585,0.5118753,1141.0,1138.9,1.2942651]
[1761578883783,0.64349368,1141.4,1138.9,1.2942651]
[1761578884079,0.51167566,1141.3,1138.9,1.2942651]
[1761578884379,0.51167566,1141.2,1138.9,1.2942651]
[1761578884578,0.51167566,1141.1,1138.9,1.2942651]
[1761578884883,0.51167566,1141.0,1138.9,1.2942651]
[1761578885084,0.64349368,1141.4,1138.9,1.2942651]
[1761578885383,0.64349368,1141.4,1138.1,2.1571086]
[1761578885384,1.1550401,1141.3,1138.8,1.2942651]
[1761578885583,0.51154642,1141.2,1138.8,1.2942651]
[1761578885783,0.51154642,1141.1,1138.9,0.895]
[1761578885983,0.51154642,1141.0,1138.9,0.895]
[1761578886184,0.51154642,1140.9,1138.9,0.895]
[1761578886383,0.64349368,1141.3,1138.9,0.895]
[1761578886684,0.51150851,1141.2,1138.9,0.895]
[1761578886881,0.51150851,1141.1,1138.9,0.895]
[1761578887183,0.51150851,1141.0,1138.9,0.895]
[1761578887383,0.51150851,1140.9,1138.9,0.895]
[1761578887581,0.51150851,1140.8,1138.9,0.895]
[1761578887785,0.64349368,1141.2,1138.9,0.895]
[1761578887980,0.51149164,1141.1,1138.9,0.895]
[1761578888180,0.51149164,1141.0,1138.9,0.895]
[1761578888381,0.51149164,1140.9,1138.9,0.895]
[1761578888585,0.51149164,1140.8,1138.9,0.895]
[1761578888886,0.51149164,1140.7,1138.9,0.895]
[1761578889084,0.51149164,1140.6,1138.9,0.895]
[1761578889384,0.51149164,1140.5,1138.9,0.895]
[1761578889583,0.51149164,1140.4,1138.9,0.895]
[1761578889782,0.51149164,1140.3,1138.9,0.895]
[1761578889981,0.64349368,1140.7,1138.9,0.895]
[1761578890282,0.64349368,1140.5,1138.9,0.895]
[1761578890585,0.51122985,1140.4,1138.9,0.895]
[1761578890781,0.51122985,1140.3,1138.9,0.895]